[Event "Fagernes Chess GM-Swiss 2024"]
[Site "Fagernes"]
[Date "2024.03.24"]
[Round "1.42"]
[White "Haug, Havard"]
[Black "Stark, John"]
[Result "1-0"]
[ECO "B12"]
[WhiteElo "2341"]
[BlackElo "1947"]
[Annotator "RC"]
[PlyCount "74"]
[EventDate "2024.03.25"]
[EventType "swiss"]
[EventCountry "NOR"]
[SourceTitle "playchess.com"]
[Source "ChessBase"]
[SourceQuality "1"]
[TimeControl "40/6000+30:2400+30"]

1. e4 {[%emt 0:00:06]} c6 {[%emt 0:00:05]} 2. d4 {[%emt 0:00:05]} d5 {[%emt 0:00:05]} 3. e5 {[%emt 0:00:28]} Bf5 {[%emt 0:00:06]} 4. h4 {[%emt 0:00:04]} h5 {[%emt 0:00:05]} 5. Bd3 {[%emt 0:00:08]} Bxd3 {[%emt 0:00:04]} 6. Qxd3 {[%emt 0:00:02]} Qa5+ {[%emt 0:00:07]} 7. Nd2 {[%emt 0:00:19]} e6 {[%emt 0:00:05]} 8. Ngf3 {[%emt 0:00:43]} Qa6 {[%emt 0:00:04]} 9. c4 {[%emt 0:00:46]} Nh6 {[%emt 0:00:06]} 10. O-O {[%emt 0:01:31]} Nf5 {[%emt 0:00:04]} 11. g3 {[%emt 0:01:57]} c5 {[%emt 0:03:47]} 12. Qc2 {[%emt 0:06:24]} Nc6 {[%emt 0:10:39]} 13. dxc5 {[%emt 0:12:28]} dxc4 {[%emt 0:17:22]} 14. Qxc4 {[%emt 0:08:18]} Qxc4 {[%emt 0:00:21]} 15. Nxc4 {[%emt 0:00:01]} Bxc5 {[%emt 0:00:08]} 16. Kg2 {[%emt 0:00:31]} O-O {[%emt 0:03:09]} 17. Bg5 {[%emt 0:05:11]} b5 {[%emt 0:23:41]} 18. Ncd2 {[%emt 0:04:18]} Rfc8 {[%emt 0:08:57]} 19. Ne4 {[%emt 0:08:02]} Ncd4 {[%emt 0:09:42]} 20. Rfd1 {[%emt 0:03:50]} Nxf3 {[%emt 0:05:59]} 21. Kxf3 {[%emt 0:00:04]} Bd4 {[%emt 0:02:41]} 22. Nd6 {[%emt 0:02:19]} Bxb2 {[%emt 0:10:09]} 23. Rab1 {[%emt 0:01:47]} Rc2 {[%emt 0:01:42]} 24. Nxf5 {[%emt 0:01:29]} exf5 {[%emt 0:00:09]} 25. Rd2 {[%emt 0:00:07]} Rxd2 {[%emt 0:00:35]} 26. Bxd2 {[%emt 0:00:03]} Bxe5 {[%emt 0:00:34]} 27. Rxb5 {[%emt 0:00:02]} Re8 {[%emt 0:03:09]} 28. Ra5 {[%emt 0:00:48]} Bd4 {[%emt 0:05:36]} 29. Rxf5 {[%emt 0:00:13]} g6 {[%emt 0:00:17]} 30. Rd5 {[%emt 0:00:11]} Bb6 {[%emt 0:00:09]} 31. a4 {[%emt 0:00:50]} Re6 {[%emt 0:04:57]} 32. a5 {[%emt 0:03:18]} Rf6+ {[%emt 0:00:35]} 33. Ke2 {[%emt 0:01:55]} Re6+ {[%emt 0:00:35]} 34. Kf1 {[%emt 0:01:05]} Bc7 {[%emt 0:00:28]} 35. Rc5 {[%emt 0:01:49]} Be5 {[%emt 0:00:57]} 36. Be3 {[%emt 0:01:43]} Bxg3 {[%emt 0:00:44]} 37. Bd4 {[%emt 0:00:11]} Bxh4 {[%emt 0:00:00]} 1-0

[Event "Fagernes Chess GM-Swiss 2024"]
[Site "Fagernes"]
[Date "2024.03.24"]
[Round "1.43"]
[White "Skramstad, Oda Kofoed"]
[Black "Vestby-Ellingsen, Mads"]
[Result "0-1"]
[ECO "D20"]
[WhiteElo "1945"]
[BlackElo "2336"]
[Annotator "RC"]
[PlyCount "76"]
[EventDate "2024.03.25"]
[EventType "swiss"]
[EventCountry "NOR"]
[SourceTitle "playchess.com"]
[Source "ChessBase"]
[SourceQuality "1"]
[TimeControl "40/6000+30:2400+30"]

1. d4 {[%emt 0:00:07]} d5 {[%emt 0:08:40]} 2. c4 {[%emt 0:00:52]} dxc4 {[%emt 0:00:17]} 3. e4 {[%emt 0:02:11]} Nc6 {[%emt 0:00:22]} 4. Be3 {[%emt 0:05:45]} e5 {[%emt 0:07:19]} 5. d5 {[%emt 0:04:39]} Nce7 {[%emt 0:00:21]} 6. Nc3 {[%emt 0:02:04]} Ng6 {[%emt 0:02:49]} 7. Bxc4 {[%emt 0:04:11]} a6 {[%emt 0:01:39]} 8. Rc1 {[%emt 0:07:04]} Bd6 {[%emt 0:01:33]} 9. Nge2 {[%emt 0:04:32]} Nf6 {[%emt 0:02:09]} 10. f3 {[%emt 0:04:09]} O-O {[%emt 0:02:46]} 11. O-O {[%emt 0:02:08]} Qe7 {[%emt 0:01:37]} 12. a3 {[%emt 0:05:26]} Nh5 {[%emt 0:05:35]} 13. b4 {[%emt 0:07:08]} a5 {[%emt 0:09:37]} 14. Nb5 {[%emt 0:01:43]} axb4 {[%emt 0:00:27]} 15. Nxd6 {[%emt 0:00:56]} Qxd6 {[%emt 0:00:14]} 16. Bb3 {[%emt 0:03:21]} b6 {[%emt 0:13:01]} 17. axb4 {[%emt 0:05:33]} Bd7 {[%emt 0:00:19]} 18. Bd2 {[%emt 0:04:09]} Rfc8 {[%emt 0:05:10]} 19. Bc3 {[%emt 0:05:24]} Bb5 {[%emt 0:02:02]} 20. Re1 {[%emt 0:03:28]} Nh4 {[%emt 0:08:34]} 21. Ng3 {[%emt 0:04:05]} Nf4 {[%emt 0:00:27]} 22. Rc2 {[%emt 0:02:29]} Nd3 {[%emt 0:01:53]} 23. Re3 {[%emt 0:00:51]} Nxb4 {[%emt 0:00:37]} 24. Bxb4 {[%emt 0:04:14]} Qxb4 {[%emt 0:00:11]} 25. Rec3 {[%emt 0:00:29]} c5 {[%emt 0:04:36]} 26. Kh1 {[%emt 0:13:42]} Ra3 {[%emt 0:07:22]} 27. Rc1 {[%emt 0:05:20]} Ba4 {[%emt 0:04:07]} 28. Bxa4 {[%emt 0:00:13]} Rxc3 {[%emt 0:00:09]} 29. Rb1 {[%emt 0:00:45]} Qd4 {[%emt 0:02:23]} 30. Ne2 {[%emt 0:00:09]} Qf2 {[%emt 0:00:48]} 31. Qf1 {[%emt 0:00:36]} Qxf1+ {[%emt 0:00:14]} 32. Rxf1 {[%emt 0:00:04]} Re3 {[%emt 0:00:48]} 33. Nc1 {[%emt 0:01:47]} Ra8 {[%emt 0:02:17]} 34. Bc6 {[%emt 0:02:14]} Ra1 {[%emt 0:00:46]} 35. d6 {[%emt 0:00:30]} Kf8 {[%emt 0:00:39]} 36. Bb5 {[%emt 0:01:16]} Rc3 {[%emt 0:01:28]} 37. d7 {[%emt 0:01:39]} Ke7 {[%emt 0:00:09]} 38. Rd1 {[%emt 0:00:43]} Kd8 {[%emt 0:00:10]} 0-1

[Event "Fagernes Chess GM-Swiss 2024"]
[Site "Fagernes"]
[Date "2024.03.24"]
[Round "1.44"]
[White "Lund, Gunnar"]
[Black "Aamodt, Peder Marcus"]
[Result "1/2-1/2"]
[ECO "A13"]
[WhiteElo "2335"]
[BlackElo "1941"]
[Annotator "RC"]
[PlyCount "120"]
[EventDate "2024.03.25"]
[EventType "swiss"]
[EventCountry "NOR"]
[SourceTitle "playchess.com"]
[Source "ChessBase"]
[SourceQuality "1"]
[TimeControl "40/6000+30:2400+30"]

1. c4 {[%emt 0:06:55]} e6 {[%emt 0:00:23]} 2. Nf3 {[%emt 0:00:44]} Nf6 {[%emt 0:01:57]} 3. g3 {[%emt 0:00:04]} d5 {[%emt 0:02:23]} 4. Bg2 {[%emt 0:00:14]} dxc4 {[%emt 0:03:17]} 5. Na3 {[%emt 0:03:23]} Bxa3 {[%emt 0:02:15]} 6. bxa3 {[%emt 0:02:29]} O-O {[%emt 0:01:06]} 7. Qc2 {[%emt 0:05:24]} b5 {[%emt 0:06:44]} 8. Ng5 {[%emt 0:04:46]} c6 {[%emt 0:01:52]} 9. Bb2 {[%emt 0:00:40]} Re8 {[%emt 0:05:41]} 10. O-O {[%emt 0:12:39]} e5 {[%emt 0:27:33]} 11. f4 {[%emt 0:04:35]} e4 {[%emt 0:01:46]} 12. Nxe4 {[%emt 0:02:32]} Nxe4 {[%emt 0:08:18]} 13. Bxe4 {[%emt 0:00:19]} h6 {[%emt 0:03:46]} 14. Bf3 {[%emt 0:04:12]} Qb6+ {[%emt 0:05:28]} 15. e3 {[%emt 0:06:36]} Nd7 {[%emt 0:02:08]} 16. Rfe1 {[%emt 0:05:15]} Rb8 {[%emt 0:16:15]} 17. d4 {[%emt 0:02:13]} cxd3 {[%emt 0:06:25]} 18. Qxd3 {[%emt 0:00:43]} c5 {[%emt 0:00:21]} 19. Rad1 {[%emt 0:05:20]} c4 {[%emt 0:02:25]} 20. Qd4 {[%emt 0:00:12]} Nf6 {[%emt 0:00:53]} 21. a4 {[%emt 0:06:03]} bxa4 {[%emt 0:01:52]} 22. Qxb6 {[%emt 0:00:15]} Rxb6 {[%emt 0:02:56]} 23. Bd4 {[%emt 0:00:06]} Bb7 {[%emt 0:00:48]} 24. Be2 {[%emt 0:03:13]} Rc6 {[%emt 0:01:15]} 25. Rb1 {[%emt 0:01:25]} Ba6 {[%emt 0:01:50]} 26. Rec1 {[%emt 0:01:37]} Ne4 {[%emt 0:02:04]} 27. Bf3 {[%emt 0:01:28]} c3 {[%emt 0:01:28]} 28. Rb4 {[%emt 0:02:30]} Rc4 {[%emt 0:00:20]} 29. Rxc4 {[%emt 0:01:47]} Bxc4 {[%emt 0:00:01]} 30. Bxe4 {[%emt 0:01:12]} Rxe4 {[%emt 0:00:06]} 31. a3 {[%emt 0:00:04]} Re6 {[%emt 0:01:23]} 32. Rxc3 {[%emt 0:00:07]} Rc6 {[%emt 0:00:11]} 33. Bxa7 {[%emt 0:02:42]} Bd5 {[%emt 0:00:06]} 34. Bc5 {[%emt 0:02:19]} f5 {[%emt 0:01:02]} 35. Kf2 {[%emt 0:02:03]} Kf7 {[%emt 0:00:37]} 36. g4 {[%emt 0:00:17]} Ke6 {[%emt 0:00:27]} 37. Kg3 {[%emt 0:02:17]} fxg4 {[%emt 0:00:40]} 38. Kxg4 {[%emt 0:01:00]} g6 {[%emt 0:00:07]} 39. h4 {[%emt 0:00:32]} Be4 {[%emt 0:01:06]} 40. h5 {[%emt 0:00:24]} gxh5+ {[%emt 0:00:33]} 41. Kxh5 {[%emt 0:42:51]} Kd5 {[%emt 0:01:19]} 42. Bd4 {[%emt 0:00:00]} Bf3+ {[%emt 0:00:09]} 43. Kh4 {[%emt 0:00:00]} Rxc3 {[%emt 0:00:03]} 44. Bxc3 {[%emt 0:00:00]} Ke4 {[%emt 0:00:05]} 45. Bd4 {[%emt 0:00:00]} Kf5 {[%emt 0:00:13]} 46. Kg3 {[%emt 0:00:00]} Bd5 {[%emt 0:00:18]} 47. Bg7 {[%emt 0:00:00]} h5 {[%emt 0:00:14]} 48. Bf8 {[%emt 0:00:00]} Be4 {[%emt 0:00:21]} 49. Be7 {[%emt 0:00:00]} Bd5 {[%emt 0:00:04]} 50. Kf2 {[%emt 0:00:00]} Bc4 {[%emt 0:00:13]} 51. Ke1 {[%emt 0:00:00]} Ke4 {[%emt 0:00:18]} 52. Kd2 {[%emt 0:00:00]} Be6 {[%emt 0:00:15]} 53. Ke2 {[%emt 0:00:00]} Bc4+ {[%emt 0:00:04]} 54. Kf2 {[%emt 0:00:00]} Kf5 {[%emt 0:00:31]} 55. Bc5 {[%emt 0:00:00]} Bd5 {[%emt 0:00:18]} 56. Kg3 {[%emt 0:00:00]} Be4 {[%emt 0:00:17]} 57. Kh4 {[%emt 0:00:00]} Bf3 {[%emt 0:00:07]} 58. Kg3 {[%emt 0:00:00]} Be4 {[%emt 0:00:03]} 59. Kh4 {[%emt 0:00:00]} Bf3 {[%emt 0:00:04]} 60. Kg3 {[%emt 0:00:00]} Be4 {[%emt 0:00:09]} 1/2-1/2

[Event "Fagernes Chess GM-Swiss 2024"]
[Site "Fagernes"]
[Date "2024.03.24"]
[Round "1.45"]
[White "Juodziukynas, Aidas"]
[Black "Dushyant Sharma"]
[Result "0-1"]
[ECO "D31"]
[WhiteElo "1893"]
[BlackElo "2331"]
[Annotator "RC"]
[PlyCount "80"]
[EventDate "2024.03.25"]
[EventType "swiss"]
[EventCountry "NOR"]
[SourceTitle "playchess.com"]
[Source "ChessBase"]
[SourceQuality "1"]
[TimeControl "40/6000+30:2400+30"]

1. d4 {[%emt 0:00:16]} d5 {[%emt 0:00:07]} 2. c4 {[%emt 0:00:27]} e6 {[%emt 0:00:06]} 3. Nc3 {[%emt 0:00:20]} c6 {[%emt 0:00:15]} 4. e3 {[%emt 0:01:45]} Bd6 {[%emt 0:01:24]} 5. Nf3 {[%emt 0:02:27]} f5 {[%emt 0:00:14]} 6. Qc2 {[%emt 0:08:28]} Nf6 {[%emt 0:00:55]} 7. b3 {[%emt 0:02:09]} O-O {[%emt 0:00:46]} 8. Bb2 {[%emt 0:03:33]} Ne4 {[%emt 0:05:35]} 9. Bd3 {[%emt 0:12:38]} Nd7 {[%emt 0:01:55]} 10. O-O-O {[%emt 0:05:32]} b5 {[%emt 0:05:11]} 11. cxb5 {[%emt 0:01:06]} Bb7 {[%emt 0:04:09]} 12. Kb1 {[%emt 0:01:41]} Rc8 {[%emt 0:00:40]} 13. Rc1 {[%emt 0:04:55]} cxb5 {[%emt 0:01:52]} 14. Qe2 {[%emt 0:00:56]} a6 {[%emt 0:00:46]} 15. Nd2 {[%emt 0:03:25]} Qa5 {[%emt 0:05:17]} 16. Bxe4 {[%emt 0:04:41]} dxe4 {[%emt 0:02:59]} 17. Rc2 {[%emt 0:01:52]} Rc7 {[%emt 0:02:32]} 18. Rhc1 {[%emt 0:01:12]} Rfc8 {[%emt 0:00:24]} 19. Qd1 {[%emt 0:03:29]} Bb4 {[%emt 0:01:53]} 20. Ne2 {[%emt 0:00:49]} Rxc2 {[%emt 0:00:10]} 21. Rxc2 {[%emt 0:01:12]} Rxc2 {[%emt 0:00:06]} 22. Kxc2 {[%emt 0:01:19]} Qxa2 {[%emt 0:00:48]} 23. Qa1 {[%emt 0:11:08]} Qxa1 {[%emt 0:00:45]} 24. Bxa1 {[%emt 0:00:03]} Bxd2 {[%emt 0:03:07]} 25. Kxd2 {[%emt 0:00:07]} b4 {[%emt 0:00:08]} 26. Kc2 {[%emt 0:03:04]} Bd5 {[%emt 0:00:21]} 27. Ng3 {[%emt 0:00:25]} Nb8 {[%emt 0:02:27]} 28. Nf1 {[%emt 0:00:47]} Nc6 {[%emt 0:00:11]} 29. Nd2 {[%emt 0:00:41]} Na5 {[%emt 0:00:08]} 30. f3 {[%emt 0:02:36]} Kf7 {[%emt 0:00:15]} 31. Bb2 {[%emt 0:00:53]} Kg6 {[%emt 0:00:31]} 32. Ba1 {[%emt 0:01:02]} Kg5 {[%emt 0:04:08]} 33. Bb2 {[%emt 0:01:25]} h5 {[%emt 0:00:25]} 34. fxe4 {[%emt 0:00:57]} fxe4 {[%emt 0:00:07]} 35. Bc1 {[%emt 0:02:43]} Kg4 {[%emt 0:00:13]} 36. Bb2 {[%emt 0:00:15]} h4 {[%emt 0:00:08]} 37. Bc1 {[%emt 0:00:28]} h3 {[%emt 0:03:38]} 38. g3 {[%emt 0:00:07]} g6 {[%emt 0:00:34]} 39. Kb2 {[%emt 0:00:49]} Nxb3 {[%emt 0:04:19]} 40. Nxb3 {[%emt 0:00:02]} Kf3 {[%emt 0:00:33]} 0-1

[Event "Fagernes Chess GM-Swiss 2024"]
[Site "Fagernes"]
[Date "2024.03.24"]
[Round "1.46"]
[White "Nordahl, Helge"]
[Black "Lien, Sebastian"]
[Result "1-0"]
[ECO "D63"]
[WhiteElo "2330"]
[BlackElo "1885"]
[Annotator "RC"]
[PlyCount "81"]
[EventDate "2024.03.25"]
[EventType "swiss"]
[EventCountry "NOR"]
[SourceTitle "playchess.com"]
[Source "ChessBase"]
[SourceQuality "1"]
[TimeControl "40/6000+30:2400+30"]

1. d4 {[%emt 0:00:03]} Nf6 {[%emt 0:00:58]} 2. c4 {[%emt 0:00:03]} e6 {[%emt 0:00:35]} 3. Nf3 {[%emt 0:00:04]} d5 {[%emt 0:00:13]} 4. Nc3 {[%emt 0:00:26]} Be7 {[%emt 0:01:25]} 5. Bg5 {[%emt 0:00:17]} O-O {[%emt 0:00:23]} 6. e3 {[%emt 0:00:06]} Nbd7 {[%emt 0:02:04]} 7. Rc1 {[%emt 0:01:36]} c6 {[%emt 0:05:20]} 8. a3 {[%emt 0:02:19]} a5 {[%emt 0:07:52]} 9. Bd3 {[%emt 0:04:41]} Re8 {[%emt 0:08:03]} 10. O-O {[%emt 0:03:14]} h6 {[%emt 0:00:25]} 11. Bf4 {[%emt 0:06:47]} Nh5 {[%emt 0:10:43]} 12. cxd5 {[%emt 0:03:36]} Nxf4 {[%emt 0:16:25]} 13. dxc6 {[%emt 0:01:39]} Nh3+ {[%emt 0:05:31]} 14. gxh3 {[%emt 0:00:39]} bxc6 {[%emt 0:00:05]} 15. Ne4 {[%emt 0:04:05]} Bb7 {[%emt 0:16:43]} 16. Qe2 {[%emt 0:10:18]} Bf8 {[%emt 0:06:22]} 17. Rfd1 {[%emt 0:06:37]} Qb6 {[%emt 0:10:09]} 18. Ne5 {[%emt 0:17:59]} Nxe5 {[%emt 0:00:46]} 19. dxe5 {[%emt 0:00:43]} c5 {[%emt 0:01:33]} 20. Ng3 {[%emt 0:00:36]} g6 {[%emt 0:01:36]} 21. Be4 {[%emt 0:04:00]} Rab8 {[%emt 0:02:24]} 22. Rd7 {[%emt 0:06:33]} Bc8 {[%emt 0:02:16]} 23. Rd2 {[%emt 0:06:47]} Bg7 {[%emt 0:04:02]} 24. f4 {[%emt 0:01:10]} Ba6 {[%emt 0:01:05]} 25. Bd3 {[%emt 0:06:01]} Bxd3 {[%emt 0:00:42]} 26. Rxd3 {[%emt 0:02:36]} Rec8 {[%emt 0:01:17]} 27. b3 {[%emt 0:02:07]} Qc6 {[%emt 0:02:37]} 28. Qg2 {[%emt 0:00:41]} Qb5 {[%emt 0:00:48]} 29. Qc2 {[%emt 0:00:48]} Rd8 {[%emt 0:01:43]} 30. Rcd1 {[%emt 0:01:14]} Rdc8 {[%emt 0:00:31]} 31. Ne4 {[%emt 0:02:11]} c4 {[%emt 0:00:50]} 32. Rc3 {[%emt 0:00:02]} Qb6 {[%emt 0:00:28]} 33. bxc4 {[%emt 0:00:27]} g5 {[%emt 0:00:22]} 34. c5 {[%emt 0:01:26]} Qc7 {[%emt 0:00:42]} 35. c6 {[%emt 0:01:06]} Qb6 {[%emt 0:00:31]} 36. c7 {[%emt 0:00:56]} Rxc7 {[%emt 0:00:13]} 37. Rxc7 {[%emt 0:00:39]} Qxe3+ {[%emt 0:00:04]} 38. Kg2 {[%emt 0:02:08]} gxf4 {[%emt 0:01:04]} 39. Nf6+ {[%emt 0:01:01]} Bxf6 {[%emt 0:00:02]} 40. exf6 {[%emt 0:00:05]} f3+ {[%emt 0:01:02]} 41. Kh1 {[%emt 0:41:12]} 1-0

[Event "Fagernes Chess GM-Swiss 2024"]
[Site "Fagernes"]
[Date "2024.03.24"]
[Round "1.47"]
[White "Elsness, Fredrik Valstad"]
[Black "Kistrup, Nicolai"]
[Result "0-1"]
[ECO "C56"]
[WhiteElo "1873"]
[BlackElo "2324"]
[Annotator "RC"]
[PlyCount "64"]
[EventDate "2024.03.25"]
[EventType "swiss"]
[EventCountry "NOR"]
[SourceTitle "playchess.com"]
[Source "ChessBase"]
[SourceQuality "1"]
[TimeControl "40/6000+30:2400+30"]

1. e4 {[%emt 0:01:04]} e5 {[%emt 0:00:05]} 2. Nf3 {[%emt 0:00:08]} Nc6 {[%emt 0:00:03]} 3. Bc4 {[%emt 0:00:15]} Nf6 {[%emt 0:00:05]} 4. d4 {[%emt 0:00:18]} exd4 {[%emt 0:00:06]} 5. e5 {[%emt 0:00:06]} d5 {[%emt 0:00:03]} 6. Bb5 {[%emt 0:00:10]} Ne4 {[%emt 0:00:06]} 7. Nxd4 {[%emt 0:00:19]} Bd7 {[%emt 0:00:08]} 8. Bxc6 {[%emt 0:00:17]} bxc6 {[%emt 0:00:04]} 9. O-O {[%emt 0:00:10]} Bc5 {[%emt 0:00:03]} 10. f3 {[%emt 0:00:11]} Ng5 {[%emt 0:00:04]} 11. f4 {[%emt 0:00:06]} Ne4 {[%emt 0:00:04]} 12. Be3 {[%emt 0:00:14]} Qb8 {[%emt 0:00:04]} 13. Nd2 {[%emt 0:00:36]} Qxb2 {[%emt 0:01:08]} 14. Nxe4 {[%emt 0:03:00]} dxe4 {[%emt 0:00:04]} 15. Qd2 {[%emt 0:07:25]} Qb4 {[%emt 0:01:03]} 16. Qf2 {[%emt 0:04:24]} Qc3 {[%emt 0:08:16]} 17. Rae1 {[%emt 0:06:48]} Bb6 {[%emt 0:06:27]} 18. f5 {[%emt 0:06:06]} c5 {[%emt 0:05:36]} 19. Nb3 {[%emt 0:01:15]} Bb5 {[%emt 0:09:33]} 20. Bd2 {[%emt 0:22:05]} Qxc2 {[%emt 0:04:30]} 21. f6 {[%emt 0:02:19]} g6 {[%emt 0:06:14]} 22. Rc1 {[%emt 0:18:48]} Qxa2 {[%emt 0:02:22]} 23. Qe3 {[%emt 0:06:10]} Bxf1 {[%emt 0:14:22]} 24. Qxe4 {[%emt 0:01:13]} O-O {[%emt 0:01:02]} 25. Qf4 {[%emt 0:02:57]} Kh8 {[%emt 0:01:46]} 26. Qh6 {[%emt 0:00:13]} Rg8 {[%emt 0:01:03]} 27. Rc3 {[%emt 0:09:15]} Bd3 {[%emt 0:01:45]} 28. e6 {[%emt 0:06:05]} c4+ {[%emt 0:01:29]} 29. Kh1 {[%emt 0:00:08]} cxb3 {[%emt 0:00:28]} 30. exf7 {[%emt 0:00:59]} b2 {[%emt 0:00:38]} 31. fxg8=R+ {[%emt 0:00:28]} Rxg8 {[%emt 0:00:39]} 32. f7 {[%emt 0:00:37]} Qxf7 {[%emt 0:00:18]} 0-1

[Event "Fagernes Chess GM-Swiss 2024"]
[Site "Fagernes"]
[Date "2024.03.24"]
[Round "1.48"]
[White "Hedman, Erik"]
[Black "Stai, Sondre"]
[Result "1/2-1/2"]
[ECO "B40"]
[WhiteElo "2311"]
[BlackElo "1842"]
[Annotator "RC"]
[PlyCount "125"]
[EventDate "2024.03.25"]
[EventType "swiss"]
[EventCountry "NOR"]
[SourceTitle "playchess.com"]
[Source "ChessBase"]
[SourceQuality "1"]
[TimeControl "40/6000+30:2400+30"]

1. e4 {[%emt 0:00:03]} c5 {[%emt 0:00:19]} 2. Nf3 {[%emt 0:00:05]} e6 {[%emt 0:00:34]} 3. b3 {[%emt 0:00:12]} Nc6 {[%emt 0:11:47]} 4. Bb2 {[%emt 0:00:39]} d6 {[%emt 0:06:02]} 5. Bb5 {[%emt 0:02:15]} e5 {[%emt 0:04:34]} 6. O-O {[%emt 0:00:49]} Be7 {[%emt 0:06:49]} 7. b4 {[%emt 0:07:58]} Qb6 {[%emt 0:34:26]} 8. Nc3 {[%emt 0:00:54]} Nf6 {[%emt 0:10:56]} 9. bxc5 {[%emt 0:04:32]} Qxc5 {[%emt 0:00:33]} 10. d4 {[%emt 0:23:50]} exd4 {[%emt 0:02:01]} 11. Nd5 {[%emt 0:07:17]} Nxd5 {[%emt 0:09:28]} 12. Bxc6+ {[%emt 0:07:55]} Qxc6 {[%emt 0:03:59]} 13. exd5 {[%emt 0:01:40]} Qxd5 {[%emt 0:01:06]} 14. Re1 {[%emt 0:00:41]} Be6 {[%emt 0:02:22]} 15. Nxd4 {[%emt 0:01:38]} O-O {[%emt 0:00:52]} 16. Nxe6 {[%emt 0:01:34]} Qxd1 {[%emt 0:01:12]} 17. Raxd1 {[%emt 0:00:04]} fxe6 {[%emt 0:01:30]} 18. Rxe6 {[%emt 0:00:05]} Rf7 {[%emt 0:01:48]} 19. Ba3 {[%emt 0:06:23]} Rc8 {[%emt 0:00:58]} 20. Rd2 {[%emt 0:03:32]} Rc3 {[%emt 0:02:43]} 21. Bb4 {[%emt 0:07:02]} Rc4 {[%emt 0:00:31]} 22. a3 {[%emt 0:00:18]} h6 {[%emt 0:00:27]} 23. g3 {[%emt 0:08:20]} a5 {[%emt 0:02:44]} 24. Bxa5 {[%emt 0:02:58]} d5 {[%emt 0:00:19]} 25. Bb4 {[%emt 0:01:21]} Bxb4 {[%emt 0:00:26]} 26. axb4 {[%emt 0:00:04]} Rxb4 {[%emt 0:01:12]} 27. Rxd5 {[%emt 0:00:38]} Rc4 {[%emt 0:00:59]} 28. Re2 {[%emt 0:04:24]} Rc3 {[%emt 0:00:17]} 29. h4 {[%emt 0:03:28]} Rfc7 {[%emt 0:00:08]} 30. Rdd2 {[%emt 0:01:15]} Kf7 {[%emt 0:00:16]} 31. Kf1 {[%emt 0:00:15]} b5 {[%emt 0:00:15]} 32. Rd5 {[%emt 0:01:23]} Rxc2 {[%emt 0:01:46]} 33. Rxc2 {[%emt 0:00:06]} Rxc2 {[%emt 0:00:05]} 34. Rxb5 {[%emt 0:00:02]} Kf6 {[%emt 0:00:26]} 35. h5 {[%emt 0:00:18]} Ra2 {[%emt 0:01:05]} 36. Kg2 {[%emt 0:00:04]} Ra1 {[%emt 0:00:47]} 37. f4 {[%emt 0:01:46]} Ra2+ {[%emt 0:01:02]} 38. Kh3 {[%emt 0:00:04]} Ra6 {[%emt 0:00:22]} 39. Kg4 {[%emt 0:02:18]} Rc6 {[%emt 0:00:36]} 40. Rb7 {[%emt 0:01:31]} Rc5 {[%emt 0:01:36]} 41. Rb6+ {[%emt 0:46:16]} Kf7 {[%emt 0:40:19]} 42. Rd6 {[%emt 0:00:12]} Rb5 {[%emt 0:00:00]} 43. Rg6 {[%emt 0:00:00]} Rc5 {[%emt 0:00:00]} 44. f5 {[%emt 0:00:00]} Rc4+ {[%emt 0:00:00]} 45. Kh3 {[%emt 0:00:00]} Rc5 {[%emt 0:00:00]} 46. g4 {[%emt 0:00:00]} Rc3+ {[%emt 0:00:00]} 47. Kg2 {[%emt 0:00:00]} Rc2+ {[%emt 0:00:00]} 48. Kf3 {[%emt 0:00:00]} Rc1 {[%emt 0:00:00]} 49. Ke2 {[%emt 0:00:00]} Rc2+ {[%emt 0:00:00]} 50. Ke3 {[%emt 0:00:00]} Rc4 {[%emt 0:00:00]} 51. f6 {[%emt 0:00:00]} gxf6 {[%emt 0:00:00]} 52. Kf3 {[%emt 0:00:00]} Rc3+ {[%emt 0:00:00]} 53. Kf4 {[%emt 0:00:00]} Rc4+ {[%emt 0:00:00]} 54. Kg3 {[%emt 0:00:00]} Rc3+ {[%emt 0:00:00]} 55. Kh4 {[%emt 0:00:00]} Rc4 {[%emt 0:00:00]} 56. Rxh6 {[%emt 0:00:00]} f5 {[%emt 0:00:00]} 57. Rg6 {[%emt 0:00:00]} Rxg4+ {[%emt 0:00:00]} 58. Rxg4 {[%emt 0:00:00]} fxg4 {[%emt 0:00:00]} 59. Kxg4 {[%emt 0:00:00]} Kg8 {[%emt 0:00:00]} 60. Kg5 {[%emt 0:00:00]} Kh7 {[%emt 0:00:00]} 61. h6 {[%emt 0:00:00]} Kg8 {[%emt 0:00:00]} 62. Kg6 {[%emt 0:00:00]} Kh8 {[%emt 0:00:00]} 63. h7 {[%emt 0:00:00]} 1/2-1/2

[Event "Fagernes Chess GM-Swiss 2024"]
[Site "Fagernes"]
[Date "2024.03.24"]
[Round "1.49"]
[White "Avetisyan, Ani"]
[Black "Vagman, Roy"]
[Result "0-1"]
[ECO "A41"]
[WhiteElo "1840"]
[BlackElo "2311"]
[Annotator "RC"]
[PlyCount "88"]
[EventDate "2024.03.25"]
[EventType "swiss"]
[EventCountry "NOR"]
[SourceTitle "playchess.com"]
[Source "ChessBase"]
[SourceQuality "1"]
[TimeControl "40/6000+30:2400+30"]

1. d4 {[%emt 0:00:05]} d6 {[%emt 0:00:09]} 2. Nf3 {[%emt 0:01:45]} Bg4 {[%emt 0:00:25]} 3. c4 {[%emt 0:02:08]} c6 {[%emt 0:00:53]} 4. Nc3 {[%emt 0:01:03]} Nd7 {[%emt 0:00:41]} 5. g3 {[%emt 0:01:47]} e5 {[%emt 0:02:29]} 6. Bg2 {[%emt 0:01:21]} Ngf6 {[%emt 0:00:47]} 7. O-O {[%emt 0:04:50]} Qb6 {[%emt 0:07:02]} 8. c5 {[%emt 0:06:06]} Qc7 {[%emt 0:06:51]} 9. cxd6 {[%emt 0:03:33]} Bxd6 {[%emt 0:00:12]} 10. Be3 {[%emt 0:16:00]} O-O {[%emt 0:05:28]} 11. Rc1 {[%emt 0:06:02]} Bxf3 {[%emt 0:10:04]} 12. Bxf3 {[%emt 0:01:04]} exd4 {[%emt 0:00:52]} 13. Bxd4 {[%emt 0:06:02]} Be5 {[%emt 0:01:13]} 14. Qa4 {[%emt 0:06:57]} Bxd4 {[%emt 0:03:59]} 15. Qxd4 {[%emt 0:00:08]} Ne5 {[%emt 0:04:29]} 16. Qf4 {[%emt 0:04:52]} Nxf3+ {[%emt 0:00:50]} 17. Qxf3 {[%emt 0:00:04]} Qe5 {[%emt 0:01:20]} 18. Rfd1 {[%emt 0:00:38]} Rfe8 {[%emt 0:01:09]} 19. Kg2 {[%emt 0:01:13]} h5 {[%emt 0:02:13]} 20. h4 {[%emt 0:01:51]} Re6 {[%emt 0:01:08]} 21. Rd3 {[%emt 0:02:58]} Ng4 {[%emt 0:03:18]} 22. Rcd1 {[%emt 0:07:28]} Rae8 {[%emt 0:01:28]} 23. Qf4 {[%emt 0:05:58]} Rf6 {[%emt 0:01:01]} 24. Qxe5 {[%emt 0:03:52]} Rxf2+ {[%emt 0:00:08]} 25. Kg1 {[%emt 0:00:05]} Rxe5 {[%emt 0:00:06]} 26. Rd4 {[%emt 0:05:51]} Ref5 {[%emt 0:01:44]} 27. Rd8+ {[%emt 0:03:12]} Kh7 {[%emt 0:00:03]} 28. Re8 {[%emt 0:00:06]} Kg6 {[%emt 0:06:27]} 29. Ne4 {[%emt 0:05:50]} Rxe2 {[%emt 0:01:07]} 30. Rd6+ {[%emt 0:00:43]} f6 {[%emt 0:00:40]} 31. Nxf6 {[%emt 0:00:42]} Rxe8 {[%emt 0:00:20]} 32. Nxe8+ {[%emt 0:00:10]} Kf7 {[%emt 0:00:10]} 33. Rd8 {[%emt 0:06:58]} Re5 {[%emt 0:07:39]} 34. Nxg7 {[%emt 0:01:48]} Kxg7 {[%emt 0:00:14]} 35. Rd7+ {[%emt 0:00:38]} Kg6 {[%emt 0:00:06]} 36. Rxb7 {[%emt 0:00:08]} Rb5 {[%emt 0:00:39]} 37. Rxa7 {[%emt 0:01:23]} Rxb2 {[%emt 0:00:08]} 38. Ra6 {[%emt 0:01:16]} Ne5 {[%emt 0:00:12]} 39. Kf1 {[%emt 0:01:46]} Kf5 {[%emt 0:00:24]} 40. Ra8 {[%emt 0:00:40]} c5 {[%emt 0:00:17]} 41. Ke1 {[%emt 0:40:51]} c4 {[%emt 0:40:09]} 42. Kd1 {[%emt 0:00:48]} c3 {[%emt 0:00:08]} 43. Rc8 {[%emt 0:00:43]} Rd2+ {[%emt 0:00:08]} 44. Kc1 {[%emt 0:00:14]} Nd3+ {[%emt 0:00:05]} 0-1